fUST/lending_fUST_20240817
["ID","MTS","AMOUNT","RATE_DAILY","PERIOD"]
[335109440,1723839041026,-371.84377,0.00273973,120]
[335109441,1723839041036,-437.661654,0.00273973,120]
[335109442,1723839041045,-371.84377,0.00273973,120]
[335109443,1723839041055,-437.661654,0.00273973,120]
[335109444,1723839041064,-371.84377,0.00273973,120]
[335109445,1723839041073,-437.661654,0.00273973,120]
[335109446,1723839041082,-371.84377,0.00273973,120]
[335109447,1723839041092,-437.661654,0.00273973,120]
[335109448,1723839041101,-371.84377,0.00273973,120]
[335109449,1723839041110,-150.0,0.0028,120]
[335109450,1723839041120,-1000.0,0.0028945,120]
[335109451,1723839041129,-150.0,0.0029,120]
[335109452,1723839041138,-41162.52501942,0.00299,120]
[335109453,1723839041147,-200.0,0.00299867,120]
[335109454,1723839041157,-150.0,0.003,120]
[335109455,1723839041166,-605.77,0.003,120]
[335109456,1723839041176,-1000.0,0.003,120]
[335109457,1723839041186,-150.112233,0.003,80]
[335109458,1723839041195,-200.0,0.00301237,120]
[335109459,1723839041204,-150.0,0.0031,120]
[335109460,1723839041214,-5004.0,0.00315,120]
[335109461,1723839041222,-150.0,0.0032,120]
[335109462,1723839041231,-1951.60435583,0.0032,120]
[335109463,1723839041241,-1389.45587772,0.00320495,120]
[335109464,1723839041250,-5004.0,0.00325,120]
[335109465,1723839041259,-500.0,0.00329999,120]
[335109466,1723839041268,-150.0,0.0033,120]
[335109467,1723839041277,-10000.0,0.0033,120]
[335109468,1723839041287,-5004.0,0.00335,120]
[335109469,1723839041296,-150.0,0.0034,120]
[335109470,1723839041306,-10000.0,0.0034,120]
[335109471,1723839041315,-5004.0,0.00345,120]
[335109472,1723839041324,-29167.2958628,0.0034999,90]
[335109473,1723839041335,-500.0,0.0035,120]
[335109474,1723839041345,-150.112233,0.0035,113]
[335109475,1723839041354,-150.0,0.0035,120]
[335109476,1723839041364,-10000.0,0.0035,120]
[335109477,1723839041373,-2000.0,0.0035216,120]
[335109478,1723839041382,-5004.0,0.00355,120]
[335109479,1723839041447,-156617.05211813,0.00358,120]
[335109511,1723839088742,500.0,0.00058004,120]
[335109512,1723839134483,1888.61074624,0.00070307,2]
[335109513,1723839147684,210.4,0.00014519,2]
[335109514,1723839148702,172.83912965,0.00070307,2]
[335109515,1723839153730,198.20376709,0.00070307,2]
[335109516,1723839157765,273.37336231,9.9e-05,2]
[335109517,1723839235156,3618.78085108,9.9e-05,2]
[335109524,1723839332702,3327.05571529,9.9e-05,2]
[335109532,1723840026104,-795.78536288,0.00012999,2]
[335109533,1723840027148,-102.13843545,0.00012999,2]
[335109534,1723840027174,-68.5301828,0.00012999,2]
[335109535,1723840030099,-86.27996053,0.00012999,2]
[335109536,1723840030122,-639.84526611,0.00013025,2]
[335109537,1723840030145,-156.87111249,0.00013025,2]
[335109538,1723840030170,-155.18167037,0.00013025,2]
[335109539,1723840030194,-280.52663375,0.00013051,2]
[335109540,1723840030217,-500.0,0.00013477,2]
[335109541,1723840030242,-494.60550184,0.00013597,2]
[335109542,1723840030267,-763.08760872,0.00014519,2]
[335109543,1723840037094,-506.6017544,0.00014519,2]
[335109544,1723840037117,-3061.49085719,0.00017498,2]
[335109545,1723840038108,-180.62309923,0.00017498,2]
[335109546,1723840041114,-190.8773746,0.00017498,2]
[335109548,1723840048097,-190.17033777,0.00017498,2]
[335109549,1723840048144,-151.97920914,0.00017498,2]
[335109552,1723840147099,-5100.4539687,0.00013,2]
[335109553,1723840147119,-10104.05444699,0.00017498,2]
[335109554,1723840147141,-704.94865106,0.00029,2]
[335109555,1723840147163,-259.25869447,0.00035,4]
[335109556,1723840147189,-21108.1693608,0.00035,120]
[335109557,1723840147212,-3670.26828292,0.00050727,14]
[335109558,1723840154153,-1329.73171708,0.00050727,14]
[335109559,1723840154175,-500.0,0.00065,120]
[335109560,1723840154198,-3000.0,0.00069,120]
[335109561,1723840154222,-502.57458949,0.00069,120]
[335109562,1723840154245,-326.88343002,0.00069,120]
[335109563,1723840154268,-500.0,0.00069,120]
[335109564,1723840154293,-3000.0,0.0006901,120]
[335109565,1723840154319,-3000.0,0.0006902,120]
[335109566,1723840154343,-3000.0,0.0006903,120]
[335109567,1723840154367,-3000.0,0.0006904,120]
[335109568,1723840154388,-500.0,0.00073,120]
[335109569,1723840154409,-500.0,0.00075,120]
[335109570,1723840154432,-500.0,0.00079,120]
[335109571,1723840154455,-500.0,0.00085,120]
[335109572,1723840154477,-500.0,0.0009,120]
[335109573,1723840154500,-500.0,0.001,120]
[335109574,1723840154526,-1537.89852611,0.0011874,120]
[335109575,1723840154550,-2000.0,0.0014163,120]
[335109576,1723840154574,-500.0,0.0015,120]
[335109577,1723840154596,-2000.0,0.0016417,120]
[335109578,1723840154617,-500.0,0.0017,120]
[335109579,1723840154639,-2000.0,0.0018376,120]
[335109580,1723840154663,-156.76485272,0.001925,120]
[335109581,1723840154686,-500.0,0.002,120]
[335109582,1723840154709,-3465.24578185,0.002,120]
[335109583,1723840154730,-2000.0,0.0020965,120]
[335109584,1723840154752,-2748.76833718,0.0022192,120]
[335109585,1723840154773,-2000.0,0.0022745,120]
[335109586,1723840154798,-500.0,0.0023,120]
[335109587,1723840154822,-2000.0,0.0024815,120]
[335109588,1723840154846,-500.0,0.00249718,120]
[335109589,1723840154868,-500.0,0.0025,120]
[335109590,1723840154890,-150.0,0.0025,120]
[335109591,1723840154914,-150.0,0.0026,120]
[335109592,1723840157174,-2000.0,0.0026771,120]
[335109593,1723840157199,-27416.62518676,0.0026999,60]
[335109594,1723840162089,-771.69190544,0.0026999,60]
[335109595,1723840162111,-150.0,0.0027,120]
[335109596,1723840162132,-1293.0016123,0.0027,120]
[335109597,1723840170537,2000.0,0.0024483,120]
[335109598,1723840173644,500.0,0.0025,120]
[335109599,1723840178186,2000.0,0.0026632,120]
[335109602,1723840186744,500.0,0.0026,120]
[335109603,1723840187512,1761.40016471,0.0026542,120]
[335109611,1723840191829,1000.0,0.0025,120]
[335109613,1723840202682,500.0,0.0025,120]
[335109618,1723840231149,500.0,0.00069,120]
[335109622,1723840231640,500.0,0.00069274,120]
[335109659,1723840231978,500.0,0.00069548,120]
[335109684,1723840232360,500.0,0.00069822,120]
[335109685,1723840232770,500.0,0.00070096,120]
[335109686,1723840233194,0.89976398,0.0007037,120]
[335109687,1723840233219,254.53503755,0.0007037,120]
[335109719,1723840238039,-18.9631798,0.0026,120]
[335109725,1723840239890,2075.126808,0.00074,120]
[335109764,1723840242049,-966.0,0.0026,120]
[335109765,1723840242067,-10294.10335914,0.0026,120]
[335109766,1723840242080,-500.0,0.0026,120]
[335109767,1723840242094,-238.59983529,0.0026351,120]
[335109768,1723840242109,-50694.9574007,0.0027,120]
[335109769,1723840242125,-500.0,0.0027,120]
[335109770,1723840242139,-1972.22880795,0.0027167,28]
[335109771,1723840242158,-2000.0,0.0027177,120]
[335109772,1723840242173,-151.0,0.00273973,120]
[335109773,1723840242185,-223.94052,0.00273973,120]
[335109774,1723840242196,-376.199263,0.00273973,120]
[335109775,1723840242208,-376.199263,0.00273973,120]
[335109776,1723840242222,-376.199263,0.00273973,120]
[335109777,1723840242237,-376.199263,0.00273973,120]
[335109778,1723840242257,-376.199263,0.00273973,120]
[335109779,1723840242273,-376.199263,0.00273973,120]
[335109780,1723840242287,-376.199263,0.00273973,120]
[335109781,1723840242299,-376.199263,0.00273973,120]
[335109782,1723840242310,-376.199263,0.00273973,120]
[335109783,1723840242323,-376.199263,0.00273973,120]
[335109784,1723840242337,-376.199263,0.00273973,120]
[335109785,1723840242350,-376.199263,0.00273973,120]
[335109786,1723840242363,-376.199263,0.00273973,120]
[335109787,1723840242375,-376.199263,0.00273973,120]
[335109788,1723840242388,-376.199263,0.00273973,120]
[335109789,1723840242400,-376.199263,0.00273973,120]
[335109790,1723840242415,-376.199263,0.00273973,120]
[335109791,1723840242429,-376.199263,0.00273973,120]
[335109792,1723840242442,-376.199263,0.00273973,120]
[335109793,1723840242456,-376.199264,0.00273973,120]
[335109794,1723840242469,-211.851071,0.00273973,120]
[335109795,1723840242481,-211.851071,0.00273973,120]
[335109796,1723840242494,-211.851071,0.00273973,120]
[335109797,1723840242509,-211.851071,0.00273973,120]
[335109798,1723840242521,-211.851071,0.00273973,120]
[335109799,1723840242533,-211.851071,0.00273973,120]
[335109800,1723840242546,-211.851071,0.00273973,120]
[335109801,1723840242559,-211.851071,0.00273973,120]
[335109802,1723840242571,-211.851071,0.00273973,120]
[335109803,1723840242583,-211.851071,0.00273973,120]
[335109804,1723840242595,-211.851071,0.00273973,120]
[335109805,1723840242607,-211.851071,0.00273973,120]
[335109807,1723840242619,-211.851071,0.00273973,120]
[335109809,1723840242632,-211.851071,0.00273973,120]
[335109810,1723840242644,-211.851071,0.00273973,120]
[335109811,1723840242654,-211.851071,0.00273973,120]
[335109814,1723840242761,-211.851071,0.00273973,120]
[335109816,1723840242771,-211.851071,0.00273973,120]
[335109818,1723840242781,-211.851071,0.00273973,120]
[335109819,1723840242791,-211.851076,0.00273973,120]
[335109820,1723840242801,-167.329696,0.00273973,120]
[335109821,1723840242810,-167.329696,0.00273973,120]
[335109822,1723840242821,-167.329696,0.00273973,120]
[335109823,1723840242830,-167.329696,0.00273973,120]
[335109824,1723840242840,-167.329696,0.00273973,120]
[335109825,1723840242849,-167.329696,0.00273973,120]
[335109826,1723840242859,-167.329696,0.00273973,120]
[335109827,1723840242869,-167.329696,0.00273973,120]
[335109829,1723840242879,-167.329696,0.00273973,120]
[335109831,1723840242889,-167.329696,0.00273973,120]
[335109832,1723840242899,-167.329696,0.00273973,120]
[335109834,1723840242909,-167.329696,0.00273973,120]
[335109836,1723840242919,-167.329696,0.00273973,120]
[335109838,1723840242928,-167.329696,0.00273973,120]
[335109840,1723840242938,-167.329696,0.00273973,120]
[335109842,1723840242948,-167.329696,0.00273973,120]
[335109843,1723840242957,-167.329696,0.00273973,120]
[335109845,1723840242966,-167.329696,0.00273973,120]
[335109846,1723840242976,-167.329696,0.00273973,120]
[335109847,1723840242986,-167.329699,0.00273973,120]
[335109848,1723840242995,-200.0,0.00274747,120]
[335109849,1723840243005,-150.0,0.0028,120]
[335109850,1723840243014,-150.0,0.0029,120]
[335109851,1723840243023,-5005.0,0.00295,120]
[335109852,1723840243033,-150.0,0.003,120]
[335109853,1723840243043,-500.0,0.003,120]
[335109854,1723840243052,-1000.0,0.003,120]
[335109855,1723840243063,-8330.0,0.00303025,30]
[335109856,1723840243073,-150.112233,0.00309,27]
[335109857,1723840243084,-150.0,0.0031,120]
[335109858,1723840243095,-500.0,0.0031,120]
[335109859,1723840243106,-410.96354509,0.00315,120]
[335109868,1723840244011,-4594.03645491,0.00315,120]
[335109870,1723840244021,-150.0,0.0032,120]
[335109872,1723840244031,-5005.0,0.00325,120]
[335109874,1723840244040,-19575.02739387,0.00329,120]
[335109881,1723840244093,-3155.85,0.00329,120]
[335109883,1723840244105,-1800.17311432,0.00329,120]
[335109885,1723840244117,-460.66785129,0.00329,120]
[335109887,1723840244129,-451.51601229,0.00329,120]
[335109889,1723840244141,-815.24575236,0.00329,120]
[335109891,1723840244153,-21639.20307488,0.00329,120]
[335109924,1723840246101,-16.88657879,0.00329,120]
[335109926,1723840246113,-2753.8533479,0.00329,120]
[335109930,1723840246847,-4350.3088332,0.00329,120]
[335109932,1723840297045,2710.71989764,0.00014519,2]
[335109933,1723840297378,912.35112821,0.00038497,2]
[335109934,1723840297400,2087.64887179,0.00038497,2]
[335109935,1723840301096,2164.74871652,9.999e-05,2]
[335109937,1723840310555,612.51260498,0.00012628,2]
[335109938,1723840310578,1255.35596184,0.00012628,2]
[335109939,1723840312927,601.5809545,7.911e-05,2]
[335109940,1723840318349,1612.28857669,0.00011894,2]
[335109941,1723840324181,504.80821134,7.911e-05,2]
[335109942,1723840324211,665.1114012,7.911e-05,2]
[335109945,1723840394675,1942.32247516,7.911e-05,2]
[335109946,1723840411309,991.08223747,7.911e-05,2]
[335109955,1723840807761,322.11881907,0.00010958,2]
[335109959,1723840894589,342.47979758,0.00010958,2]
[335110021,1723841154138,-523.97952354,0.00012629,2]
[335110023,1723841247104,-154.91162192,0.00012999,2]
[335110024,1723841247126,-500.0,0.00013477,2]
[335110025,1723841247148,-505.92952846,0.0002,2]
[335110026,1723841247245,-387.43923734,0.0002,2]
[335110027,1723841247267,-570.68678949,0.00027404,2]
[335110028,1723841250097,-66.26239792,0.00027404,2]
[335110029,1723841250118,-122.65204825,0.00030932,2]
[335110030,1723841250144,-324.92759856,0.00030932,2]
[335110033,1723841345108,-5669.50287301,0.00014245,2]
[335110034,1723841355113,-4639.90550023,0.00014245,2]
[335110035,1723841355137,-24301.78402069,0.00030932,2]
[335110036,1723841355163,-154.71377951,0.00035,4]
[335110037,1723841355201,-200.0,0.0006,120]
[335110038,1723841355230,-150.0,0.00069,120]
[335110039,1723841355254,-508.90667799,0.00078999,120]
[335110040,1723841355278,-200.0,0.0008,120]
[335110041,1723841355300,-500.0,0.00089,30]
[335110042,1723841355330,-500.0,0.00094999,120]
[335110043,1723841355353,-500.0,0.00095,30]
[335110044,1723841355379,-2010.14834134,0.00099,120]
[335110045,1723841355403,-500.0,0.00099897,7]
[335110046,1723841355426,-500.0,0.00099897,7]
[335110047,1723841355451,-500.0,0.00099897,7]
[335110048,1723841355474,-500.0,0.00099897,7]
[335110049,1723841355498,-500.0,0.00099897,7]
[335110050,1723841355520,-500.0,0.00099897,7]
[335110051,1723841355546,-444.1044645,0.00099897,7]
[335110052,1723841357089,-55.8955355,0.00099897,7]
[335110053,1723841357111,-500.0,0.00099897,7]
[335110054,1723841357133,-500.0,0.00099897,7]
[335110055,1723841357155,-500.0,0.00099897,7]
[335110056,1723841357176,-500.0,0.00099897,7]
[335110057,1723841357199,-500.0,0.00099897,7]
[335110058,1723841357220,-500.0,0.00099897,7]
[335110059,1723841357243,-500.0,0.00099897,7]
[335110060,1723841357367,-500.0,0.00099897,7]
[335110061,1723841357390,-500.0,0.00099897,7]
[335110062,1723841357412,-500.0,0.00099897,7]
[335110063,1723841357434,-500.0,0.00099897,7]
[335110064,1723841357454,-500.0,0.00099897,7]
[335110065,1723841357476,-500.0,0.00099897,7]
[335110066,1723841357497,-500.0,0.00099897,7]
[335110067,1723841357517,-500.0,0.00099897,7]
[335110068,1723841357537,-500.0,0.00099897,7]
[335110069,1723841357558,-115.58394876,0.00099897,7]
[335110070,1723841358261,-384.41605124,0.00099897,7]
[335110071,1723841358283,-500.0,0.00099897,7]
[335110072,1723841358304,-500.0,0.00099897,7]
[335110073,1723841358327,-500.0,0.00099897,7]
[335110074,1723841358348,-500.0,0.00099897,7]
[335110075,1723841358371,-500.0,0.00099897,7]
[335110076,1723841358393,-500.0,0.00099897,7]
[335110077,1723841358414,-500.0,0.00099897,7]
[335110078,1723841358435,-500.0,0.00099897,7]
[335110079,1723841358455,-500.0,0.00099897,7]
[335110080,1723841358476,-500.0,0.00099897,7]
[335110081,1723841358498,-500.0,0.00099897,7]
[335110082,1723841358520,-500.0,0.00099897,7]
[335110083,1723841358542,-500.0,0.00099897,7]
[335110084,1723841358568,-500.0,0.00099897,7]
[335110085,1723841358589,-500.0,0.00099897,7]
[335110086,1723841358615,-500.0,0.00099897,7]
[335110087,1723841358636,-500.0,0.00099897,7]
[335110088,1723841358658,-500.0,0.00099897,7]
[335110089,1723841358681,-463.27230824,0.00099897,7]
[335110090,1723841358703,-500.0,0.00099897,7]
[335110091,1723841358725,-500.0,0.00099897,7]
[335110092,1723841358763,-500.0,0.00099897,7]
[335110093,1723841358791,-500.0,0.00099897,7]
[335110094,1723841358816,-500.0,0.00099897,7]
[335110095,1723841358840,-500.0,0.00099897,7]
[335110096,1723841358863,-500.0,0.00099897,7]
[335110097,1723841358886,-500.0,0.00099897,7]
[335110098,1723841358909,-500.0,0.00099897,7]
[335110099,1723841358933,-500.0,0.00099897,7]
[335110100,1723841358957,-500.0,0.00099897,7]
[335110101,1723841358981,-500.0,0.00099897,7]
[335110102,1723841359005,-500.0,0.00099897,7]
[335110103,1723841359027,-500.0,0.00099897,7]
[335110104,1723841359050,-500.0,0.00099897,7]
[335110105,1723841359075,-500.0,0.00099897,7]
[335110106,1723841359097,-650.0,0.00099897,7]
[335110107,1723841359119,-500.0,0.00099897,7]
[335110108,1723841359141,-500.0,0.00099897,7]
[335110109,1723841359163,-7219.2097502,0.001,120]
[335110110,1723841359187,-500.0,0.001,30]
[335110111,1723841359211,-200.0,0.001,120]
[335110112,1723841359232,-500.0,0.0012,30]
[335110113,1723841359254,-500.0,0.0013,30]
[335110114,1723841359276,-500.0,0.0015,30]
[335110115,1723841359299,-500.0,0.0017,30]
[335110116,1723841359328,-500.0,0.0018,30]
[335110117,1723841359351,-500.0,0.002,30]
[335110118,1723841359375,-200.0,0.002,120]
[335110119,1723841359397,-500.0,0.0021,30]
[335110120,1723841359420,-500.0,0.0023,30]
[335110121,1723841359442,-500.0,0.0024,30]
[335110122,1723841359464,-150.0,0.0025,120]
[335110123,1723841359488,-500.0,0.0025,30]
[335110124,1723841359597,-150.0,0.0026,120]
[335110125,1723841359621,-500.0,0.0026,30]
[335110126,1723841359647,-233390.99704895,0.002688,120]
[335110127,1723841364829,2010.07,0.00099,120]
[335110128,1723841366118,-10802.5665403,0.002688,120]
[335110129,1723841369150,-552.4735982,0.002688,120]
[335110132,1723841374289,-115807.89372959,0.002688,120]
[335110136,1723841387866,5804.77670491,0.0025,120]
[335110139,1723841413398,2010.07,0.0009989,120]
[335110140,1723841427877,1817.79167228,0.0009989,120]
[335110156,1723841432566,-192.27832772,0.0009989,120]
[335110157,1723841432576,-36579.27314021,0.002488,120]
[335110181,1723841438197,-4179.20921753,0.002488,120]
[335110218,1723841438744,-12363.35523374,0.002488,120]
[335110264,1723841440458,-584713.44943496,0.002488,120]
[335110265,1723841440517,-2245.1999994,0.002488,120]
[335110267,1723841440529,-1133.38967978,0.002488,120]
[335110309,1723841446956,-1157.75066602,0.0025,120]
[335110310,1723841446966,-734.0,0.0025,120]
[335110311,1723841446975,-106276.23651326,0.002655,120]
[335110312,1723841447012,-272244.39015511,0.002655,120]
[335110314,1723841495001,601.04165462,7.911e-05,2]
[335110315,1723841548107,-300.0,0.00011998,2]
[335110316,1723841548132,-300.0,0.00011998,2]
[335110317,1723841548155,-18127.27486348,0.00011999,2]
[335110318,1723841549129,404.31033644,9.589e-05,2]
[335110320,1723841550503,324.43479961,9.589e-05,2]
[335110321,1723841553673,2142.17325985,9.589e-05,2]
[335110322,1723841555973,156.95829692,9.589e-05,2]
[335110323,1723841564010,307.72485666,9.589e-05,2]
[335110324,1723841565505,718.10358846,9.589e-05,2]
[335110325,1723841565530,6985.15324288,9.589e-05,2]
[335110326,1723841568415,520.2055012,9.589e-05,2]
[335110327,1723841576267,200.0,9.589e-05,2]
[335110371,1723842057782,227.51894009,0.00010958,2]
[335110376,1723842143115,1671.25835316,0.00010958,2]
[335110377,1723842150206,5015.04482254,0.00010958,2]
[335110378,1723842165040,1086.17788421,0.00010958,2]
[335110379,1723842165065,3928.86693833,0.00010958,2]
[335110384,1723842244115,567.18373008,0.00010958,2]
[335110387,1723842330183,-202.48635104,0.00012999,2]
[335110388,1723842353371,-159.66315671,0.00012999,2]
[335110389,1723842432406,-203.15997434,0.00012985,2]
[335110391,1723842444111,-4910.34130776,0.00012885,2]
[335110392,1723842445099,-1791.30400561,0.00012885,2]
[335110393,1723842445124,-354.67120138,0.00012985,2]
[335110394,1723842452106,-170.73263179,0.00012985,2]
[335110395,1723842452128,-154.66746495,0.00012999,2]
[335110396,1723842452151,-163.13030475,0.00013,2]
[335110397,1723842452179,-193.07381292,0.00013,2]
[335110398,1723842453106,-306.92618708,0.00013,2]
[335110399,1723842453131,-157.65237765,0.00015756,2]
[335110400,1723842453153,-3695.8482216,0.0002,2]
[335110405,1723842547266,-154.79098585,0.00015739,2]
[335110406,1723842547288,-293.31685336,0.00015739,2]
[335110407,1723842547310,-853.10109443,0.0002,2]
[335110408,1723842547333,-704.94865106,0.00029,2]
[335110409,1723842547355,-199.50718,0.00032268,2]
[335110410,1723842547381,-199.50718,0.00033949,2]
[335110411,1723842547405,-162.8626633,0.00035616,120]
[335110412,1723842547427,-320.0,0.00038999,30]
[335110413,1723842547450,-3823.84475953,0.00039,120]
[335110414,1723842547471,-1021.03258198,0.00045,70]
[335110415,1723842547495,-500.0,0.00045239,7]
[335110416,1723842547516,-500.0,0.00045239,7]
[335110417,1723842547539,-500.0,0.00045239,7]
[335110418,1723842547560,-500.0,0.00045239,7]
[335110419,1723842547581,-500.0,0.00045239,7]
[335110420,1723842547602,-500.0,0.00045239,7]
[335110421,1723842547624,-461.32723082,0.00045239,7]
[335110422,1723842547645,-41915.2267,0.0004524,30]
[335110423,1723842547668,-2224.07336403,0.0004878,28]
[335110424,1723842547691,-3670.26828292,0.0004888,14]
[335110425,1723842547715,-500.0,0.00049315,120]
[335110426,1723842547739,-500.0,0.00049315,120]
[335110427,1723842547765,-500.0,0.00049315,120]
[335110428,1723842547788,-500.0,0.00049315,120]
[335110429,1723842547812,-483.81559555,0.00049315,120]
[335110430,1723842547835,-500.0,0.00049315,120]
[335110431,1723842547856,-500.0,0.00049315,120]
[335110432,1723842547877,-500.0,0.00049315,120]
[335110433,1723842547900,-500.0,0.00049315,120]
[335110434,1723842547983,-500.0,0.00049315,120]
[335110435,1723842548008,-500.0,0.00049315,120]
[335110436,1723842548034,-500.0,0.00049315,120]
[335110437,1723842548056,-500.0,0.00049315,120]
[335110438,1723842548081,-500.0,0.00049315,120]
[335110439,1723842548102,-500.0,0.00049315,120]
[335110440,1723842548123,-500.0,0.00049315,120]
[335110441,1723842548144,-500.0,0.00049315,120]
[335110442,1723842548168,-500.0,0.00049315,120]
[335110443,1723842548190,-153.0,0.00056324,60]
[335110444,1723842548212,-207.4367972,0.00056324,60]
[335110445,1723842548234,-207.4367972,0.00056324,60]
[335110446,1723842548255,-153.0,0.00056324,60]
[335110447,1723842548277,-153.0,0.00057146,60]
[335110448,1723842548298,-153.0,0.00057146,60]
[335110449,1723842548320,-153.0,0.00057146,60]
[335110450,1723842548341,-153.0,0.00057146,60]
[335110451,1723842548362,-207.4367972,0.00057146,60]
[335110452,1723842548382,-153.0,0.00057146,60]
[335110453,1723842548404,-153.0,0.00057146,60]
[335110454,1723842548424,-207.4367972,0.00057146,60]
[335110455,1723842548446,-207.4367972,0.00057146,60]
[335110456,1723842548467,-153.0,0.00057797,60]
[335110457,1723842548489,-207.4367972,0.00058619,60]
[335110458,1723842548510,-207.4367972,0.00058619,60]
[335110459,1723842548530,-207.4367972,0.00058619,60]
[335110460,1723842548551,-207.4367972,0.00058619,60]
[335110461,1723842548574,-272.2843982,0.00058619,60]
[335110462,1723842548596,-153.0,0.00058619,60]
[335110463,1723842548617,-153.0,0.00058619,60]
[335110464,1723842548638,-153.0,0.00058619,60]
[335110465,1723842548667,-153.0,0.00058619,60]
[335110466,1723842548687,-153.0,0.00058619,60]
[335110467,1723842548707,-153.0,0.00058619,60]
[335110468,1723842548729,-153.0,0.00058619,60]
[335110469,1723842548749,-153.0,0.00058619,60]
[335110470,1723842548770,-153.0,0.00058619,60]
[335110471,1723842548791,-153.0,0.00058619,60]
[335110472,1723842548812,-153.0,0.00058619,60]
[335110473,1723842548832,-153.0,0.00058619,60]
[335110474,1723842548857,-153.0,0.00058619,60]
[335110475,1723842548879,-258.427603,0.00058619,60]
[335110476,1723842548902,-3000.0,0.00069,120]
[335110477,1723842548923,-1073.55835034,0.000999,2]
[335110478,1723842548944,-17726.804476,0.001,120]
[335110479,1723842548964,-4651.39846021,0.001,120]
[335110480,1723842548990,-2000.0,0.001,120]
[335110481,1723842549011,-500.0,0.00118203,120]
[335110482,1723842549034,-500.0,0.00122893,120]
[335110483,1723842549056,-3239.48557265,0.0016134,120]
[335110484,1723842549077,-29694.7805621,0.0017333,30]
[335110485,1723842549098,-2000.0,0.0017334,120]
[335110486,1723842549176,-2000.0,0.00188477,120]
[335110487,1723842549196,-156.76484272,0.001925,120]
[335110488,1723842549217,-150.0,0.002,120]
[335110489,1723842549237,-500.0,0.002,30]
[335110490,1723842549258,-150.112235,0.002,25]
[335110491,1723842549279,-2894.6,0.002,120]
[335110492,1723842549300,-2000.0,0.0020648,120]
[335110493,1723842549321,-150.0,0.0021,120]
[335110494,1723842549342,-150.112233,0.002199,29]
[335110495,1723842549363,-150.0,0.0022,120]
[335110496,1723842549384,-150.0,0.0023,120]
[335110497,1723842549405,-500.0,0.0023,30]
[335110498,1723842549426,-2000.0,0.0023235,120]
[335110499,1723842549447,-2310.54286507,0.002377,120]
[335110500,1723842551111,-1073.55835032,0.00143365,120]
[335110501,1723842551134,-1073.55835032,0.0018683,120]
[335110502,1723842553137,-1073.55835032,0.00230295,120]
[335110503,1723842553161,-11043.45343188,0.002377,120]
[335110504,1723842554843,153.0,0.00057797,60]
[335110505,1723842555159,207.4367972,0.00056324,60]
[335110508,1723842555299,153.0,0.00056324,60]
[335110509,1723842559136,-4624.06255346,0.002377,120]
[335110517,1723842609466,4916.37183369,0.0006827,120]
[335110518,1723842620217,1888.61074624,0.0006827,2]
[335110526,1723842632357,-462.228,0.002374,120]
[335110527,1723842632370,-11311.00967611,0.002374,120]
[335110528,1723842632583,-75.7338016,0.002374,120]
[335110529,1723842632595,-15063.10352666,0.002374,120]
[335110546,1723842638389,-11.27497139,0.002374,120]
[335110569,1723842638574,-49683.15545173,0.002374,120]
[335110573,1723842639506,-959.70387831,0.002374,120]